bitfinex/quotes_SOLUSD_20240713
["timestamp","ask_amount","ask_price","bid_price","bid_amount"]
[1720913805300,0.35862117,142.12,142.01,22.3391]
[1720913805894,30.35862117,142.12,142.04,7.0398]
[1720913806406,0.35862117,142.12,142.03,7.0407]
[1720913807896,0.35862117,142.12,142.04,7.0402]
[1720913808903,30.35862117,142.12,142.04,7.0402]
[1720913809106,45.0,142.11,142.04,7.0402]
[1720913809305,0.35862117,142.1,142.04,7.0402]
[1720913809806,0.35862117,142.1,142.01,22.3391]
[1720913809807,0.35862117,142.1,142.05,7.0395]
[1720913810313,0.35862117,142.13,142.05,7.0395]
[1720913810699,45.35862117,142.13,142.05,7.0395]
[1720913812940,45.35862117,142.13,142.02,23.32]
[1720913813226,55.35862117,142.13,142.01,22.3391]
[1720913813429,20.0,142.12,142.02,7.0412]
[1720913813719,45.35862117,142.11,142.03,7.0406]
[1720913814015,45.35862117,142.11,142.01,22.3391]
[1720913814016,0.35862117,142.1,142.04,7.0402]
[1720913814801,0.35862117,142.1,142.03,7.0406]
[1720913815208,0.35862117,142.1,142.02,7.0411]
[1720913815699,0.35862117,142.1,142.01,7.0414]
[1720913816899,0.35862117,142.1,142.02,7.0411]
[1720913818328,30.35862117,142.1,142.01,7.0415]
[1720913818528,45.0,142.09,142.01,7.0415]
[1720913818728,0.35862117,142.08,142.01,7.0415]
[1720913818928,0.35862117,142.07,142.01,7.0415]
[1720913819131,0.35862117,142.07,141.97,22.0841]
[1720913819513,0.35862117,142.07,142.01,7.0416]
[1720913819919,0.35862117,142.09,142.01,7.0416]
[1720913820307,45.35862117,142.09,142.01,7.0417]
[1720913820508,0.35862117,142.09,142.02,7.0407]
[1720913820927,0.35862117,142.09,142.03,7.0407]
[1720913821728,0.35862117,142.09,142.02,7.0411]
[1720913821933,0.35862117,142.09,142.01,7.0415]
[1720913822530,0.35862117,142.09,142.02,7.0411]
[1720913822914,0.35862117,142.09,142.0,23.32]
[1720913823321,0.35862117,142.09,142.04,7.0401]
[1720913823612,0.35862117,142.09,142.01,7.0412]
[1720913824529,0.35862117,142.11,142.07,7.0387]
[1720913824732,10.0,142.2,142.08,7.0379]
[1720913824733,23.67862117,142.17,142.08,7.0379]
[1720913825031,32.5716629,142.17,142.07,7.0386]
[1720913825623,32.5716629,142.17,142.06,7.0392]
[1720913825922,8.34065981,142.16,142.04,21.4036]
[1720913826124,0.35862117,142.15,142.04,21.4036]
[1720913826323,0.35862117,142.14,142.05,7.0396]
[1720913827712,0.35862117,142.14,142.1,7.037]
[1720913827919,0.35862117,142.15,142.1,7.037]
[1720913828113,0.35862117,142.18,142.1,7.037]
[1720913828313,0.35862117,142.17,142.09,7.0376]
[1720913828713,0.35862117,142.17,142.1,7.0371]
[1720913828914,0.35862117,142.17,142.08,23.32]
[1720913829415,0.35862117,142.17,142.1,7.0371]
[1720913834218,0.35862117,142.17,142.09,7.0376]
[1720913834631,0.35862117,142.17,142.08,23.32]
[1720913834632,0.35862117,142.17,142.04,21.4036]
[1720913834819,0.35862117,142.17,142.07,7.0384]
[1720913835023,20.35862117,142.17,142.07,7.0384]
[1720913835226,45.0,142.16,142.07,7.0384]
[1720913835453,0.35862117,142.15,142.07,7.0384]
[1720913835620,0.35862117,142.14,142.07,7.0384]
[1720913836031,0.35862117,142.14,142.06,7.039]
[1720913836436,0.35862117,142.14,142.05,7.0396]
[1720913838221,0.35862117,142.14,142.06,7.0392]
[1720913839627,0.35862117,142.14,142.05,7.0396]
[1720913839827,0.35862117,142.14,142.04,21.4036]
[1720913840922,0.35862117,142.14,142.05,7.0396]
[1720913841125,10.35862117,142.14,142.03,7.0404]
[1720913841338,65.0,142.13,142.03,7.0404]
[1720913841651,0.35862117,142.12,142.04,7.0401]
[1720913841840,0.35862117,142.12,142.05,7.0396]
[1720913842350,0.35862117,142.12,142.04,7.0401]
[1720913842731,0.35862117,142.12,142.0,45.7345]
[1720913842974,0.35862117,142.12,142.05,7.0396]
[1720913845433,0.35862117,142.12,142.04,7.0402]
[1720913847975,0.35862117,142.12,142.05,1.40777613]
[1720913848148,39.74171449,142.2,142.05,23.32]
[1720913848149,0.35862117,142.17,142.05,23.32]
[1720913848487,0.35862117,142.17,142.06,1.40726108]
[1720913848654,0.35862117,142.17,142.1,7.0372]
[1720913849271,0.35862117,142.17,142.03,15.8535]
[1720913849450,23.32,142.14,142.03,15.8535]
[1720913849658,0.35862117,142.13,142.08,7.0381]
[1720913849854,0.35862117,142.16,142.08,7.0381]
[1720913850150,0.35862117,142.16,142.07,7.0387]
[1720913850351,0.35862117,142.16,142.06,7.0391]
[1720913850651,20.35862117,142.16,142.03,15.8535]
[1720913850863,20.35862117,142.16,142.03,39.1735]
[1720913851673,45.0,142.15,142.06,7.0388]
[1720913851876,0.35862117,142.14,142.05,7.0396]
[1720913852258,0.35862117,142.14,142.03,7.0406]
[1720913852447,10.35862117,142.14,142.03,7.0406]
[1720913852774,45.0,142.13,142.03,7.0406]
[1720913852973,0.35862117,142.12,142.03,7.0406]
[1720913853181,0.35862117,142.12,142.02,6.561]
[1720913853386,0.35862117,142.12,142.06,7.0391]
[1720913853565,0.35862117,142.12,142.07,7.0387]
[1720913853883,0.35862117,142.15,142.07,7.0387]
[1720913854053,0.35862117,142.14,142.08,7.038]
[1720913854255,0.35862117,142.14,142.09,7.0377]
[1720913854662,20.0,142.17,142.08,7.038]
[1720913855064,2.79769464,142.18,142.05,23.32]
[1720913855281,23.32,142.19,142.1,7.0371]
[1720913855467,31.66065981,142.19,142.1,7.0371]
[1720913855679,0.35862117,142.18,142.09,7.0376]
[1720913855881,0.35862117,142.18,142.07,7.0383]
[1720913856059,9.2516629,142.18,142.07,7.0383]
[1720913856395,23.32,142.16,142.03,23.32]
[1720913856686,54.85862117,142.15,142.03,23.32]
[1720913856857,23.32,142.14,142.02,6.561]
[1720913857179,10.0,142.12,142.02,7.0412]
[1720913857391,33.32,142.12,142.01,7.0417]
[1720913857563,20.0,142.11,142.01,7.0417]
[1720913858078,20.0,142.11,141.99,7.0423]
[1720913858279,30.0,142.1,141.98,23.32]
[1720913858770,45.0,142.09,142.01,7.0413]
[1720913859097,30.0,142.1,141.98,23.32]
[1720913859453,20.0,142.11,142.03,7.0406]
[1720913859661,23.32,142.14,142.04,7.0398]
[1720913859987,65.0,142.13,142.02,23.32]
[1720913860294,65.0,142.13,142.04,7.0398]
[1720913860467,65.0,142.13,142.05,7.0397]
[1720913861373,20.0,142.13,142.05,7.0395]
[1720913861572,23.32,142.14,142.05,7.0395]
[1720913861755,23.32,142.14,142.06,8.44671408]
[1720913861961,23.32,142.16,142.07,7.0387]
[1720913862158,6.44544866,142.17,142.07,7.0387]
[1720913862560,14.78610847,142.17,142.07,7.0387]
[1720913863358,10.0,142.16,142.04,23.32]
[1720913863560,45.0,142.15,142.04,1.40770499]
[1720913863868,45.0,142.15,142.05,7.0396]
[1720913864068,45.0,142.15,142.04,7.0402]
[1720913864379,53.34065981,142.15,142.04,7.0402]
[1720913864765,53.34065981,142.15,142.05,7.0397]
[1720913866375,53.34065981,142.15,142.06,7.0391]
[1720913866983,53.34065981,142.15,142.03,23.32]
[1720913867282,68.32,142.15,142.02,22.1429]
[1720913867469,0.5615921,142.17,142.04,23.32]
[1720913867659,20.5615921,142.17,142.05,1.4075037]
[1720913868560,20.5615921,142.17,142.07,7.0387]
[1720913868766,45.0,142.16,142.07,7.0387]
[1720913871392,45.0,142.16,142.06,7.0391]
[1720913871693,45.0,142.16,142.07,1.40751788]
[1720913872805,20.0,142.17,142.06,23.32]
[1720913873091,8.89304173,142.18,142.09,7.0376]
[1720913873486,8.89304173,142.18,142.1,7.0371]
[1720913873682,8.89304173,142.18,142.09,7.0376]
[1720913874102,18.89304173,142.18,142.08,22.1429]
[1720913874272,8.89304173,142.18,142.08,22.1429]
[1720913874585,8.89304173,142.18,142.09,7.0377]
[1720913874781,8.89304173,142.18,142.08,22.1429]
[1720913875192,45.0,142.17,142.08,22.1429]
[1720913875393,53.34065981,142.17,142.08,22.1429]
[1720913875593,53.34065981,142.17,142.08,30.58859725]
[1720913876291,53.34065981,142.17,142.08,29.1811]
[1720913876867,45.0,142.17,142.08,29.1811]
[1720913877071,45.0,142.18,142.08,29.1811]
[1720913877389,9.24322489,142.19,142.1,7.0372]
[1720913877779,9.24322489,142.19,142.08,29.1807]
[1720913877977,18.13626662,142.19,142.08,29.1807]
[1720913878289,10.0,142.18,142.08,29.1807]
[1720913878685,45.0,142.17,142.09,8.44500524]
[1720913878990,45.0,142.17,142.08,22.1429]
[1720913878991,18.69785872,142.19,142.1,7.037]
[1720913879291,45.0,142.18,142.09,7.0376]
[1720913879490,45.0,142.18,142.1,7.0369]
[1720913884703,45.0,142.18,142.09,7.0376]
[1720913885479,45.0,142.18,142.08,22.1429]
[1720913885480,45.0,142.18,142.1,7.0372]
[1720913885800,45.0,142.18,142.08,22.1429]
[1720913886008,53.89304173,142.18,142.08,22.1429]
[1720913886182,53.89304173,142.18,142.09,7.0376]
[1720913886593,77.21304173,142.18,142.08,29.1811]
[1720913887407,20.0,142.17,142.08,29.1811]
[1720913887617,45.0,142.16,142.08,22.1429]
[1720913888794,45.0,142.16,142.06,7.0391]
[1720913888999,45.0,142.16,142.06,8.44670183]
[1720913889307,68.32,142.16,142.06,1.40760183]
[1720913889490,20.0,142.15,142.06,7.0391]
[1720913889694,45.0,142.14,142.06,7.0391]
[1720913889887,45.0,142.14,142.05,7.0397]
[1720913890405,45.0,142.14,142.06,7.0392]
[1720913891195,45.0,142.14,142.04,21.6238]
[1720913892208,45.0,142.14,142.04,28.664]
[1720913892521,45.0,142.14,142.05,7.0396]
[1720913893325,45.0,142.14,142.06,8.44682124]
[1720913893631,45.0,142.14,142.06,1.40772124]
[1720913893985,45.0,142.14,142.05,7.0395]
[1720913894520,55.0,142.14,142.04,21.6238]
[1720913894825,11.68,142.11,142.06,11.68]
[1720913895326,55.0,142.14,142.05,11.68]
[1720913895327,11.68,142.1,142.05,11.68]
[1720913896419,55.0,142.14,142.06,11.68]
[1720913896420,11.68,142.11,142.06,11.68]
[1720913898102,11.68,142.11,142.05,1.40781766]
[1720913898430,11.68,142.11,142.06,11.68]
[1720913899298,20.0,142.15,142.07,13.08770545]
[1720913899502,11.68,142.13,142.08,11.68]
[1720913899699,11.68327226,142.18,142.12,7.0361]
[1720913899900,11.68,142.17,142.12,11.68]
[1720913900209,11.68,142.16,142.11,18.7167]
[1720913900400,11.68,142.15,142.04,21.6238]
[1720913900635,11.68,142.14,142.08,7.0382]
[1720913900931,11.68,142.14,142.09,11.68]
[1720913901098,21.68327226,142.18,142.09,11.68]
[1720913901099,11.68327226,142.18,142.09,11.68]
[1720913901303,11.68,142.15,142.1,11.68]
[1720913902223,11.68327226,142.18,142.1,8.44440894]
[1720913902434,11.68,142.16,142.11,11.68]
[1720913902642,11.68327226,142.18,142.08,7.0382]
[1720913902927,11.68327226,142.18,142.05,23.35]
[1720913903122,11.68327226,142.18,142.07,23.35]
[1720913903292,11.68327226,142.18,142.08,1.40720916]
[1720913903492,11.68327226,142.18,142.11,7.0364]
[1720913904319,8.89304173,142.18,142.12,1.40714982]
[1720913904523,8.89304173,142.18,142.12,7.0361]
[1720913905338,8.89304173,142.18,142.13,1.40702077]
[1720913905519,8.89304173,142.21,142.13,1.40702077]
[1720913905726,11.7258696,142.21,142.12,8.44311636]
[1720913905921,21.7258696,142.21,142.11,21.4216]
[1720913906105,18.17131826,142.21,142.11,28.4583]
[1720913906306,18.17131826,142.21,142.11,21.4216]
[1720913906523,45.0,142.2,142.11,21.4216]
[1720913906735,8.34065981,142.19,142.11,21.4216]
[1720913906953,45.0,142.18,142.11,21.4216]
[1720913907365,8.34065981,142.19,142.14,7.0352]
[1720913907516,26.18282787,142.21,142.12,1.40685804]
[1720913907517,2.83282787,142.21,142.12,1.40685804]
[1720913907861,8.89304173,142.23,142.16,7.034]
[1720913908542,8.89304173,142.23,142.15,7.0347]
[1720913908715,8.89304173,142.23,142.16,8.44093271]
[1720913908916,8.89304173,142.23,142.17,7.0337]
[1720913909150,8.89304173,142.23,142.17,28.4553]
[1720913909657,11.76811605,142.25,142.18,8.43972248]
[1720913910571,20.66115778,142.25,142.18,8.43972248]
[1720913910854,32.57376328,142.29,142.19,7.0327]
[1720913911020,10.0,142.27,142.17,21.4216]
[1720913911225,23.35,142.24,142.14,21.4216]
[1720913911656,29.33339987,142.24,142.15,7.0346]
[1720913912221,29.33339987,142.24,142.14,28.4568]
[1720913912425,45.0,142.23,142.14,28.4568]
[1720913913033,45.0,142.23,142.14,21.4216]
[1720913913228,23.35,142.22,142.14,21.4216]
[1720913913430,45.0,142.21,142.14,21.4216]
[1720913914840,23.35,142.22,142.14,28.4567]
[1720913915035,23.35,142.22,142.15,1.40674457]
[1720913915258,26.64239555,142.28,142.15,8.44144457]
[1720913915583,26.64239555,142.28,142.14,21.4216]
[1720913915584,6.64239555,142.28,142.19,7.0327]
[1720913915734,29.99239555,142.28,142.16,1.40669998]
[1720913915941,23.35,142.28,142.16,1.40669998]
[1720913916170,23.35,142.28,142.18,7.0329]
[1720913916644,23.35,142.28,142.15,23.35]
[1720913916847,23.35,142.28,142.14,21.4216]
[1720913917471,45.0,142.26,142.16,7.0339]
[1720913917770,68.35,142.26,142.16,7.0339]
[1720913917955,78.35,142.26,142.15,7.0347]
[1720913918146,23.35,142.24,142.14,28.4568]
[1720913918351,45.0,142.23,142.14,28.4568]
[1720913918543,23.35,142.24,142.15,7.0348]
[1720913920471,55.0,142.26,142.17,7.0338]
[1720913920472,68.35,142.26,142.17,7.0338]
[1720913921050,68.35,142.26,142.18,8.43969001]
[1720913921244,45.0,142.26,142.18,8.43969001]
[1720913921766,5.98339987,142.27,142.19,7.0327]
[1720913921997,5.98339987,142.27,142.14,21.4216]
[1720913922311,33.35,142.26,142.16,7.0339]
[1720913923195,45.0,142.25,142.16,7.0339]
[1720913923504,45.0,142.25,142.15,7.0347]
[1720913923872,45.0,142.25,142.14,28.4567]
[1720913923873,23.35,142.24,142.14,28.4567]
[1720913924078,45.0,142.23,142.14,28.4567]
[1720913924296,45.0,142.23,142.14,21.4216]
[1720913924508,23.35,142.24,142.16,7.0339]
[1720913924682,23.35,142.24,142.17,7.0338]
[1720913925190,29.33339987,142.27,142.18,7.0333]
[1720913925501,45.0,142.26,142.19,7.0328]
[1720913925706,29.33339987,142.27,142.18,7.0332]
[1720913926303,5.98339987,142.27,142.2,7.0323]
[1720913926483,34.39064059,142.29,142.16,1.40623954]
[1720913926683,34.39064059,142.29,142.21,21.6101]
[1720913926885,11.04064059,142.29,142.21,30.04767997]
[1720913927289,11.04064059,142.29,142.21,28.6416]
[1720913927697,11.04064059,142.29,142.21,21.6101]
[1720913928121,43.41440387,142.29,142.17,21.6101]
[1720913928408,43.41440387,142.29,142.2,7.0319]
[1720913928600,43.41440387,142.29,142.19,7.0327]
[1720913928979,45.0,142.28,142.18,7.0332]
[1720913929174,45.0,142.28,142.21,7.0316]
[1720913929411,43.41440387,142.29,142.23,21.6101]
[1720913929412,0.2,142.29,142.23,21.6101]
[1720913930305,0.2,142.29,142.25,7.0298]
[1720913931417,0.2,142.29,142.23,44.9601]
[1720913931717,0.2,142.29,142.24,1.40553205]
[1720913931890,0.2,142.29,142.24,46.40553205]
[1720913932815,0.2,142.29,142.23,44.9601]
[1720913933017,0.2,142.29,142.24,7.0303]
[1720913933328,0.2,142.29,142.23,21.6101]
[1720913934296,0.2,142.29,142.21,7.0317]
[1720913934715,0.2,142.29,142.22,7.0313]
[1720913935709,0.2,142.29,142.23,7.0308]
[1720913936003,45.2,142.29,142.21,7.0313]
[1720913936323,45.2,142.29,142.2,22.216]
[1720913936618,65.0,142.28,142.2,22.216]
[1720913936811,23.35,142.26,142.17,7.0337]
[1720913937005,45.0,142.25,142.17,7.0337]
[1720913940123,45.0,142.25,142.18,1.40650222]
[1720913940324,45.0,142.25,142.19,7.0327]
[1720913941006,23.55,142.29,142.19,7.0327]
[1720913941222,65.0,142.28,142.19,7.0327]
[1720913941419,65.0,142.28,142.18,7.0333]
[1720913941626,65.0,142.28,142.17,7.0337]
[1720913941830,65.0,142.28,142.18,7.0332]
[1720913942242,65.0,142.28,142.19,7.0325]
[1720913943147,65.0,142.28,142.16,22.216]
[1720913943319,23.35,142.27,142.16,22.216]
[1720913943639,45.0,142.26,142.17,7.0337]
[1720913943866,45.0,142.26,142.18,7.0332]
[1720913944349,45.0,142.26,142.16,22.216]
[1720913944556,20.0,142.28,142.2,7.0319]
[1720913944751,23.55,142.29,142.21,7.0318]
[1720913944927,23.55,142.29,142.2,7.0322]
[1720913945761,23.55,142.29,142.19,7.0326]
[1720913945963,45.0,142.28,142.19,7.0326]
[1720913946260,0.2,142.29,142.19,23.35]
[1720913946435,0.2,142.29,142.23,7.0308]
[1720913947035,0.2,142.29,142.24,8.43606501]
[1720913947358,0.2,142.29,142.24,7.0302]
[1720913948356,0.2,142.29,142.24,8.43599372]
[1720913949054,0.2,142.29,142.23,22.4917]
[1720913949352,0.2,142.29,142.24,45.0]
[1720913950066,0.2,142.29,142.28,7.0283]
[1720913950239,0.2,142.29,142.23,45.8417]
[1720913950561,0.2,142.29,142.23,22.4917]
[1720913951447,0.2,142.29,142.24,1.40605072]
[1720913951763,0.2,142.29,142.24,8.43595072]
[1720913952460,0.2,142.29,142.24,1.40605072]
[1720913953756,0.2,142.29,142.24,8.43615072]
[1720913953957,0.2,142.29,142.24,1.40605072]
[1720913954156,0.2,142.29,142.23,22.4917]
[1720913954338,0.2,142.29,142.2,22.0329]
[1720913954538,45.2,142.29,142.2,29.0647]
[1720913954852,45.2,142.29,142.21,7.0317]
[1720913955254,0.2,142.29,142.26,6.1681]
[1720913955443,0.2,142.29,142.28,7.0283]
[1720913958666,0.2,142.29,142.27,1.40533453]
[1720913961544,0.2,142.29,142.27,46.40533453]
[1720913964873,0.2,142.39,142.29,15.9588]
[1720913965039,0.2,142.39,142.3,46.40482849]
[1720913965448,0.2,142.39,142.31,6.1891]
[1720913965662,0.2,142.39,142.32,45.0]
[1720913966372,0.2,142.39,142.33,15.9588]
[1720913966549,0.2,142.39,142.34,45.0]
[1720913966865,0.2,142.39,142.35,1.40448511]
[1720913967054,0.2,142.39,142.36,1.40437708]
[1720913967546,2.81636413,142.45,142.37,22.1479]
[1720913967863,0.2,142.49,142.38,66.40375775]
[1720913968749,0.2,142.49,142.38,65.0]
[1720913969351,0.2,142.49,142.38,66.40379351]
[1720913971260,0.2,142.49,142.38,65.0]
[1720913975459,0.2,142.49,142.38,45.0]
[1720913976766,0.2,142.49,142.39,20.0]
[1720913976976,0.2,142.49,142.4,45.0]
[1720913980183,0.2,142.49,142.39,20.0]
[1720913981077,0.2,142.49,142.4,46.4038535]
[1720913981574,0.2,142.49,142.4,45.0]
[1720913983278,0.2,142.49,142.41,23.07805439]
[1720913983483,0.2,142.49,142.42,45.0]
[1720913987581,7.2181,142.49,142.41,21.6742]
[1720913987878,7.2184,142.49,142.41,21.6742]
[1720913988078,7.0192,142.47,142.41,21.6742]
[1720913988267,7.0191,142.47,142.41,21.6742]
[1720913988580,7.0186,142.48,142.41,21.6742]
[1720913988780,0.2,142.49,142.41,21.6742]
[1720913988976,45.2,142.49,142.41,21.6742]
[1720913989374,7.0193,142.47,142.41,21.6742]
[1720913990975,7.0196,142.46,142.41,21.6742]
[1720913991182,7.02,142.45,142.41,21.6742]
[1720913991370,7.0188,142.48,142.41,21.6742]
[1720913991776,7.0196,142.46,142.41,21.6742]
[1720913992088,7.0191,142.47,142.41,21.6742]
[1720913993467,7.0196,142.46,142.41,21.6742]
[1720913994076,0.2,142.49,142.42,46.40408768]
[1720913994472,0.2,142.49,142.42,45.0]
[1720913994864,0.2,142.49,142.43,20.0]
[1720913995582,0.2,142.49,142.44,1.40362793]
[1720913996669,0.2,142.49,142.44,46.40362793]
[1720913997576,0.2,142.49,142.45,22.5646]
[1720913997772,0.2,142.49,142.46,1.40338365]
[1720913997978,0.2,142.49,142.46,46.40338365]
[1720913999405,0.2,142.49,142.46,45.0]
[1720913999995,0.2,142.49,142.46,46.40320903]
[1720914001794,0.2,142.49,142.46,45.0]
[1720914002572,0.2,142.49,142.45,45.8046]
[1720914002774,7.0139,142.58,142.46,20.0]
[1720914002997,9.74639344,142.59,142.46,20.0]
[1720914003211,7.0137,142.58,142.46,20.0]
[1720914003499,7.0147,142.56,142.46,20.0]
[1720914004401,50.7746,142.58,142.46,20.0]
[1720914004604,7.0157,142.54,142.46,20.0]
[1720914004804,7.0156,142.54,142.46,20.0]
[1720914005288,23.24,142.56,142.46,20.0]
[1720914005491,7.0173,142.51,142.45,22.5646]
[1720914005801,7.0167,142.52,142.45,22.5646]
[1720914006308,7.0171,142.51,142.45,22.5646]
[1720914006687,0.5997,142.54,142.45,22.5646]
[1720914007710,0.5997,142.57,142.45,22.5646]
[1720914008100,7.0151,142.55,142.46,1.40345193]
[1720914008288,7.0157,142.54,142.45,22.5646]
[1720914008489,7.0162,142.53,142.45,22.5646]
[1720914008801,7.0156,142.54,142.45,22.5646]
[1720914009006,18.1356,142.57,142.45,22.5646]
[1720914009007,0.5997,142.57,142.45,45.8046]
[1720914009386,7.6141,142.57,142.45,45.8046]
[1720914009586,27.0147,142.56,142.45,45.8046]
[1720914010614,27.0147,142.56,142.46,45.0]
[1720914010809,0.5997,142.57,142.47,1.40326982]
[1720914011013,30.2537,142.58,142.47,1.40326982]
[1720914011195,7.0137,142.58,142.47,1.40326982]
[1720914011394,7.0141,142.57,142.47,1.40326982]
[1720914011602,7.0141,142.57,142.46,45.0]
[1720914012709,7.0135,142.59,142.47,1.40324701]
[1720914012894,7.0135,142.59,142.47,46.33374701]
[1720914013093,3.43633265,142.61,142.47,46.33374701]
[1720914013094,7.0127,142.6,142.48,65.0]
[1720914013306,7.0127,142.6,142.49,1.40299862]
[1720914013709,7.0131,142.59,142.48,65.0]
[1720914013902,7.0137,142.58,142.48,65.0]
[1720914014890,7.0141,142.57,142.48,65.0]
[1720914015095,7.0141,142.57,142.48,20.0]
[1720914016591,7.0137,142.58,142.48,20.0]
[1720914021002,45.0,142.57,142.48,20.0]
[1720914025116,7.0146,142.56,142.48,20.0]
[1720914025311,45.0,142.57,142.48,20.0]
[1720914026119,9.84873265,142.61,142.5,21.865]
[1720914026319,52.0127,142.6,142.5,21.865]
[1720914026622,7.0127,142.6,142.5,21.865]
[1720914026818,2.83663265,142.61,142.51,1.40302145]
[1720914026997,7.0122,142.61,142.52,1.40290439]
[1720914029116,45.0,142.6,142.52,1.40290439]
[1720914029326,52.0127,142.6,142.52,1.40290439]
[1720914029828,7.0116,142.62,142.53,23.26790164]
[1720914031501,7.0124,142.61,142.53,23.26790164]
[1720914032415,7.0117,142.62,142.53,23.26790164]
[1720914032612,26.08156127,142.66,142.54,21.865]
[1720914033035,7.0112,142.63,142.54,21.865]
[1720914033636,7.0117,142.62,142.54,21.865]
[1720914034428,7.0122,142.61,142.54,21.865]
[1720914034616,7.0127,142.6,142.54,21.865]
[1720914035407,7.0122,142.61,142.54,21.865]
[1720914036210,7.0118,142.62,142.54,21.865]
[1720914036410,2.84156127,142.66,142.54,21.865]
[1720914036411,7.0112,142.63,142.54,21.865]
[1720914036917,7.0107,142.64,142.54,21.865]
[1720914037111,7.0106,142.64,142.54,21.865]
[1720914037828,26.08156127,142.66,142.55,22.9162]
[1720914038030,9.85136127,142.66,142.56,1.40242135]
[1720914038427,9.85136127,142.66,142.57,22.9162]
[1720914038610,9.85136127,142.66,142.58,1.40238726]
[1720914039326,23.24,142.7,142.59,22.7533]
[1720914039507,7.0087,142.68,142.59,22.7533]
[1720914039911,7.0087,142.68,142.6,1.40221961]
[1720914040221,7.0088,142.68,142.59,22.7533]
[1720914040625,7.0083,142.69,142.59,22.7533]
[1720914040936,7.0083,142.69,142.6,22.7533]
[1720914041227,7.0083,142.69,142.61,1.40201556]
[1720914042716,7.0087,142.68,142.61,1.40201556]
[1720914042918,7.0087,142.68,142.6,22.7533]
[1720914044535,10.0,142.77,142.64,22.7533]
[1720914044716,23.24,142.76,142.64,22.7533]
[1720914045037,23.24,142.76,142.69,7.0081]
[1720914045421,23.24,142.76,142.68,7.0086]
[1720914045627,23.24,142.76,142.64,22.7533]
[1720914045628,7.0073,142.71,142.64,22.7533]
[1720914045820,7.0073,142.71,142.66,7.0096]
[1720914046238,7.0073,142.71,142.67,7.0091]
[1720914046536,17.5146,142.74,142.66,7.0095]
[1720914046537,7.0078,142.7,142.66,7.0095]
[1720914046736,7.0073,142.71,142.66,7.0095]
[1720914047151,17.5146,142.74,142.67,7.0091]
[1720914047152,7.0068,142.72,142.67,7.0091]
[1720914047330,7.0068,142.72,142.68,7.0085]
[1720914048126,7.0073,142.71,142.67,7.009]
[1720914048417,7.0073,142.71,142.66,7.0095]
[1720914048616,7.0073,142.71,142.67,7.009]
[1720914049022,7.0073,142.71,142.66,7.0095]
[1720914049423,7.0073,142.71,142.67,7.0091]
[1720914049638,7.0073,142.71,142.68,22.7533]
[1720914049963,17.5139,142.75,142.68,22.7533]
[1720914049964,7.0059,142.74,142.69,7.0077]
[1720914050148,7.0059,142.74,142.7,7.0076]
[1720914050614,23.24,142.75,142.68,29.7615]
[1720914050818,7.0065,142.73,142.68,29.7615]
[1720914051128,7.0058,142.74,142.68,22.7533]
[1720914051523,23.24,142.75,142.71,7.0067]
[1720914051725,23.24,142.77,142.71,7.0067]
[1720914052031,7.005,142.76,142.68,22.7533]
[1720914052230,7.005,142.76,142.72,7.0066]
[1720914052431,7.0053,142.75,142.68,22.7533]
[1720914052621,23.24,142.77,142.68,22.7533]
[1720914052936,7.0063,142.73,142.69,7.0078]